Cogmind - Beta 10.2 @@@ ROGUE MODE // 2020.12.31 @ 04:44:47 Player: Destravous Result: Destroyed by H-88 Terminator with KE Penetrator Performance ------------- Evolutions (9) 4500 Regions Visited (15) 3000 Robots Destroyed (63) 315 Value Destroyed (1606) 1606 Prototype IDs (21) 420 Alien Tech Used (0) 0 Bonus (1097) 1097 TOTAL SCORE: 10938 Bonus ------- High Alert Combat Kills 97 Met Warlord at Base 500 MAIN.C Attacked Warlord 500 Cogmind --------- Core Integrity 0/1600 Matter 300/300 Energy 21/100 System Corruption 13% Temperature Cool (56) Movement Core (50) Location -1/Command Parts ------- > --- POWER (4) -------- (None) > --- PROPULSION (7) --- (None) > --- UTILITY (11) ----- Improved Melee Analysis Suite > --- WEAPON (3) ------- (None) > --- INVENTORY (4) ---- Advanced ECM Suite Peak State ------------ > --- POWER ------------ Light Particle Reactor Light Quantum Reactor Light Quantum Reactor Light Quantum Reactor > --- PROPULSION ------- Xenon Bombardment Thruster Q-thruster Cooled Q-thruster Cooled Q-thruster Cooled Q-thruster Cooled Q-thruster Cooled Q-thruster > --- UTILITY ---------- Advanced Cryofiber Web Experimental Coolant Injector Medium Storage Unit Improved Melee Analysis Suite Reaction Control System Advanced Phase Shifter Improved Propulsion Shielding Hacking Suite Hacking Suite Makeshift Hacking Suite Advanced Hacking Suite > --- WEAPON ----------- Centrium Greatsword Enhanced Force Lance > --- INVENTORY -------- Xenon Bombardment Thruster Xenon Bombardment Thruster Xenon Bombardment Thruster Long-range Sensor Array Nanoactuators Advanced ECM Suite Phase Shifter [Rating: 180] Favorites ----------- Power Ion Engine Engine Ion Engine Power Core Micro Nuclear Core Reactor Light Quantum Reactor Propulsion Aluminum Leg Leg Aluminum Leg Hover Unit Gravmag System Flight Unit Xenon Bombardment Thruster Utility Small Storage Unit Device Improved Terrain Scanner Storage Small Storage Unit Processor Core Analyzer Hackware Hacking Suite Protection Improved Propulsion Shielding Weapon Medium Laser Energy Gun Medium Laser Energy Cannon Light EM Pulse Cannon Ballistic Gun Assault Rifle Launcher Rocket Launcher Special Weapon Improved Remote Datajack Impact Weapon Great Maul Slashing Weapon Chainsword Piercing Weapon Lance Special Melee Weapon Datajack Build | -11 -10 -9 -8 -7 -6 -5 -5 -5 -5 -4 -4 -3 -2 -1 -1 ------- Run | Scr Mat Mat Mat Fac Fac Fac Upp Upp War Pro Fac Res Res Acc Com Slots Evolved 18 | . . 2 2 2 2 2 . . . . 2 2 2 2 . Power 3 | . . . 1 . . . . . . . 1 . 1 . . Propulsion 5 | . . . 1 . 1 1 . . . . . . 1 1 . Utility 9 | . . 2 . 2 1 1 . . . . . 2 . 1 . Weapon 1 | . . . . . . . . . . . 1 . . . . Parts Attached 209 | 1 6 13 13 36 26 8 5 2 7 3 24 17 27 11 10 Power 31 | . . 2 1 7 6 1 1 1 . . 2 1 4 3 2 Engine 10 | . . 2 1 1 6 . . . . . . . . . . Core 13 | . . . . 6 . 1 1 1 . . 2 . 2 . . Reactor 8 | . . . . . . . . . . . . 1 2 3 2 Propulsion 52 | . . 4 6 8 6 1 1 . . . 7 4 10 2 3 Treads . | . . . . . . . . . . . . . . . . Leg 2 | . . 2 . . . . . . . . . . . . . Wheel . | . . . . . . . . . . . . . . . . Hover 6 | . . . . 4 . . . . . . . 2 . . . Flight 44 | . . 2 6 4 6 1 1 . . . 7 2 10 2 3 Utility 71 | 1 . 3 2 11 11 2 1 1 3 3 7 6 10 6 4 Device 48 | 1 . 2 2 9 5 2 1 . 2 2 5 4 6 4 3 Storage 3 | . . . . . . . . . . . 1 1 1 . . Processor 9 | . . 1 . 1 4 . . 1 . . . 1 1 . . Hackware 6 | . . . . . 2 . . . 1 . . . 1 2 . Protection 5 | . . . . 1 . . . . . 1 1 . 1 . 1 Artifact . | . . . . . . . . . . . . . . . . Weapon 55 | . 6 4 4 10 3 4 2 . 4 . 8 6 3 . 1 Energy Gun 2 | . 2 . . . . . . . . . . . . . . Energy Cannon 6 | . . 4 . 2 . . . . . . . . . . . Ballistic Gun 2 | . 2 . . . . . . . . . . . . . . Ballistic Cannon . | . . . . . . . . . . . . . . . . Launcher 4 | . . . 1 . . . 1 . . . 2 . . . . Special Weapon 4 | . 2 . . . . . . . . . 1 1 . . . Impact Weapon 9 | . . . 2 5 1 . . . . . . 1 . . . Slashing Weapon 12 | . . . . 3 1 . . . . . 2 3 2 . 1 Piercing Weapon 15 | . . . . . 1 4 1 . 4 . 3 1 1 . . Special Melee Weapon 1 | . . . 1 . . . . . . . . . . . . Unidentified Prototypes 12 | . . . . 2 2 1 . . 2 . . 2 2 . 1 Parts Lost 105 | . 1 3 4 17 11 . 2 . . 2 20 5 7 5 28 Power 21 | . . 1 1 5 3 . 1 . . . 1 . 2 3 4 Propulsion 31 | . . . 2 3 3 . 1 . . 1 8 1 2 . 10 Utility 37 | . . 1 1 5 4 . . . . 1 7 3 2 2 11 Weapon 16 | . 1 1 . 4 1 . . . . . 4 1 1 . 3 Highest Loss Streak 27 | . 1 2 2 5 4 . 2 . . 2 14 2 3 2 27 Average Slot Usage (%) 78 | . 100 94 75 64 82 93 93 94 96 93 85 19 62 93 76 Engine 3 | . 14 11 9 . 10 9 . . . . . . . . . Core 4 | . . . . 4 . 1 10 11 11 11 11 . 2 4 . Reactor 1 | . . . . . . . . . . . . 1 4 8 9 Leg 2 | . 28 16 . . . . . . . . . . . . . Hover 1 | . . . . 7 . . . . . . . 2 3 . . Flight 17 | . . 5 27 12 18 29 28 29 29 24 22 . 12 28 23 Device 13 | . 14 20 13 8 13 17 17 17 17 12 10 2 16 14 13 Storage 3 | . 14 11 9 7 4 . . . . . 1 1 1 4 3 Processor 8 | . . 10 9 7 15 11 11 11 11 11 7 . 6 6 4 Hackware 7 | . . . . . 7 11 11 11 13 17 12 5 4 11 14 Protection 1 | . . . . 2 . . . . . 1 4 . . 4 2 Energy Cannon 1 | . . 17 . . . . . . . . . . . . . Impact Weapon 2 | . . . 4 8 . 3 . . . . . . 4 4 1 Slashing Weapon 1 | . . . . . 5 3 . . . . 1 2 1 4 3 Piercing Weapon 4 | . . . . . 3 2 8 11 10 11 8 . 2 4 3 Naked Turns . | . . . . . . . . . . . . . . . . Heaviest Build 90 | 14 14 19 21 28 26 36 32 32 32 31 40 37 59 90 87 Greatest Support 123 | 20 20 34 21 33 39 40 38 32 32 33 38 53 111 123 123 Greatest Overweight (x) 8 | . . 2 . 5 1 1 3 1 1 1 8 4 . . . Average Overweight (x) . | . . . . . . . . . . . . . . . . Largest Inventory Capacity 8 | 6 6 6 6 6 6 4 4 4 4 4 8 8 8 8 8 Average Capacity 5 | 6 6 6 6 6 5 4 4 4 4 4 5 5 5 8 7 Most Carried 8 | 6 6 6 6 6 6 4 4 4 4 4 8 8 8 8 8 Average Carried 5 | 5 5 5 5 5 5 3 3 4 3 3 4 5 4 5 6 Final Capacity 8 | 6 6 6 6 6 4 4 4 4 4 4 8 4 8 8 4 Final Carried 8 | 6 5 6 5 6 4 4 4 4 4 4 5 4 6 8 1 Class Distribution -------------------- 77% | Mutant 12% | Hacker-Sprinter 4% | Hacker-Mutant Dominant Class ---------------- Mutant | -10/Materials Skirmisher | -9/Materials Mutant | -8/Materials Mutant | -7/Factory Sprinter | -6/Factory Hacker-Sprinter | -5/Factory Hacker-Sprinter | -5/Upper Caves Hacker-Sprinter | -5/Upper Caves Hacker-Sprinter | -5/Warlord Hacker-Sprinter | -4/Proximity Caves Hacker-Sprinter | -4/Factory Mutant | -3/Research Mutant | -2/Research Hacker-Sprinter | -1/Access Hacker-Sprinter | -1/Command Resources | -11 -10 -9 -8 -7 -6 -5 -5 -5 -5 -4 -4 -3 -2 -1 -1 ----------- Run | Scr Mat Mat Mat Fac Fac Fac Upp Upp War Pro Fac Res Res Acc Com Matter Collected 2211 | 288 53 64 140 219 215 . 304 77 70 25 15 63 422 . 256 Remotely . | . . . . . . . . . . . . . . . . Salvage Created 1895 | 319 88 165 32 270 185 . 75 236 . 104 57 63 301 . . Parts 131 | 28 3 15 10 19 5 . 10 9 . 8 13 4 7 . . Haulers Intercepted . | . . . . . . . . . . . . . . . . Recyclers Shooed 1 | . . . . . 1 . . . . . . . . . . Parts Field Recycled . | . . . . . . . . . . . . . . . . Retrieved Matter . | . . . . . . . . . . . . . . . . Parts Self-Destructed 81 | . . . . . . . 6 8 58 9 . . . . . Prevented 3 | . . . . . . . 1 . 2 . . . . . . Kills | -11 -10 -9 -8 -7 -6 -5 -5 -5 -5 -4 -4 -3 -2 -1 -1 ------- Run | Scr Mat Mat Mat Fac Fac Fac Upp Upp War Pro Fac Res Res Acc Com Combat Hostiles Destroyed 36 | . 2 5 6 6 1 . 5 2 . 2 6 1 . . . Melee 12 | . . . . 3 1 . 2 2 . 2 1 1 . . . Guns 2 | . 2 . . . . . . . . . . . . . . Cannons 5 | . . 5 . . . . . . . . . . . . . AOE 16 | . . . 6 2 . . 3 . . . 5 . . . . Classes Destroyed 11 | 3 1 3 . 3 . . . 1 . . . . . . . Worker 8 | 4 . . 1 2 . . . . . . . . 1 . . Builder 3 | . . . . 1 . . . . . . 2 . . . . Tunneler 9 | 9 . . . . . . . . . . . . . . . Recycler 4 | 1 . . . . 1 . . . . . . . 2 . . Operator 2 | . . 1 . 1 . . . . . . . . . . . Watcher 1 | . . 1 . . . . . . . . . . . . . Swarmer 18 | . . 4 6 . . . 5 . . . 3 . . . . Grunt 8 | . 2 1 . 3 . . . 1 . . . 1 . . . Sentry 1 | . . . . . . . . 1 . . . . . . . Hunter 1 | . . . . 1 . . . . . . . . . . . Programmer 8 | . . . . 2 1 . . . . 2 3 . . . . Best Kill Streak 8 | 4 1 4 6 2 1 . 5 1 . 2 8 1 2 . . Combat Bots Only 6 | . 1 4 5 2 1 . 5 1 . 2 6 1 . . . Max Kills in Single Turn 4 | 1 1 1 4 2 1 . 2 1 . 1 3 1 1 . . Gunslinging . | . . . . . . . . . . . . . . . . Exploded 3 | . . . 3 2 . . 2 . . . 2 . . . . Melee 1 | . . . . 1 1 . 1 1 . 1 1 1 . . . Uniques/NPCs Destroyed . | . . . . . . . . . . . . . . . . Combat | -11 -10 -9 -8 -7 -6 -5 -5 -5 -5 -4 -4 -3 -2 -1 -1 -------- Run | Scr Mat Mat Mat Fac Fac Fac Upp Upp War Pro Fac Res Res Acc Com Damage Taken 11347 | . 173 418 313 1479 806 . 351 60 . 382 1786 1094 735 896 2854 Core 3794 | . 59 91 128 237 248 . 67 . . 112 641 499 109 98 1505 Absorbed by Shields . | . . . . . . . . . . . . . . . . Core Remaining (%) 74 | 100 76 77 76 66 70 . . . . 82 44 61 92 . . Volleys Fired 78 | 26 20 14 4 5 . . 4 . . . 5 . . . . Largest 2 | 2 2 2 1 2 . . 1 . . . 1 . . . . Hottest 138 | 70 100 112 33 138 . . 33 . . . 49 . . . . Shots Fired 132 | 52 33 28 4 6 . . 4 . . . 5 . . . . Gun 80 | 52 28 . . . . . . . . . . . . . . Cannon 32 | . . 28 . 4 . . . . . . . . . . . Launcher 15 | . . . 4 2 . . 4 . . . 5 . . . . Special 5 | . 5 . . . . . . . . . . . . . . Kinetic 30 | 26 4 . . . . . . . . . . . . . . Thermal 55 | 26 29 . . . . . . . . . . . . . . Explosive 15 | . . . 4 2 . . 4 . . . 5 . . . . Electromagnetic 32 | . . 28 . 4 . . . . . . . . . . . Robot Hit Streak 10 | 10 3 8 1 4 . . . . . . 1 . . . . Robot Miss Streak 4 | 2 3 3 3 1 . . 3 . . . 4 . . . . Penetration Max . | . . . . . . . . . . . . . . . . Secondary Targets . | . . . . . . . . . . . . . . . . Shots Hit Robots 132 | 28 17 16 3 21 15 . 2 5 . 3 7 6 9 . . Core Hits 85 | 15 5 7 9 12 4 . 7 5 . 3 12 2 4 . . Critical Hits 2 | . . . . . . . . . . . 1 . 1 . . Critical Kills . | . . . . . . . . . . . . . . . . Critical Parts Destroyed 1 | . . . . . . . . . . . . . 1 . . Melee Attacks 267 | . . . 3 61 48 14 11 11 4 5 24 16 15 45 10 Impact 77 | . . . 3 53 . 8 . . . . . 1 4 7 1 Slashing 74 | . . . . 7 35 2 . . . . 4 15 . 7 4 Piercing 107 | . . . . . 13 4 11 11 4 . 17 . 11 31 5 Entropic 8 | . . . . . . . . . . 5 3 . . . . Sneak Attacks 12 | . . . . 4 2 . . . . . . 2 4 . . Combat Hostiles . | . . . . . . . . . . . . . . . . Follow-up Attacks 9 | . . . . 3 3 . . . . . 1 . 2 . . Damage Inflicted 6472 | 378 175 364 440 1214 779 . 259 388 . 219 1139 349 768 . . Guns 553 | 378 175 . . . . . . . . . . . . . . Cannons 462 | . . 364 . 98 . . . . . . . . . . . Explosions 1755 | . . . 370 272 . . 190 . . . 923 . . . . Melee 3691 | . . . 70 833 779 . 69 388 . 219 216 349 768 . . Ramming 11 | . . . . 11 . . . . . . . . . . . Kinetic 168 | 132 36 . . . . . . . . . . . . . . Thermal 385 | 246 139 . . . . . . . . . . . . . . Explosive 1598 | . . . 370 115 . . 190 . . . 923 . . . . Electromagnetic 619 | . . 364 . 255 . . . . . . . . . . . Impact 842 | . . . 70 648 . . . . . . . . 124 . . Slashing 1296 | . . . . 185 672 . . . . . 90 349 . . . Piercing 1334 | . . . . . 107 . 69 388 . . 126 . 644 . . Entropic 219 | . . . . . . . . . . 219 . . . . . Highest Corruption 18 | . . . . 18 3 2 2 2 2 2 3 . . 4 13 Average Corruption 3 | . . . . 6 2 2 2 2 2 1 2 . . 1 4 Corruption Purged 1 | . . . . 1 . . . . . . . . . . . Effects 33 | . . . . 14 5 . 2 4 . . 1 . . 2 5 Message Errors 6 | . . . . 1 1 . 1 1 . . 1 . . . 1 Matter Fused 9 | . . . . 4 2 . . . . . . . . 1 2 Heat Flow Errors 5 | . . . . 1 . . 1 2 . . . . . . 1 Energy Discharges 2 | . . . . . . . . . . . . . . 1 1 Parts Rejected 2 | . . . . 2 . . . . . . . . . . . Data Loss (minor) 2 | . . . . 1 1 . . . . . . . . . . Misdirections 3 | . . . . 3 . . . . . . . . . . . Targeting Errors 4 | . . . . 2 1 . . 1 . . . . . . . Overload Shots . | . . . . . . . . . . . . . . . . Overflow Damage 985 | . . 10 5 355 308 . . . . . 111 85 111 . . Projectiles 10 | . . 10 . . . . . . . . . . . . . Explosions 88 | . . . . 3 . . . . . . 85 . . . . Melee 887 | . . . 5 352 308 . . . . . 26 85 111 . . Knockbacks 4 | . . . 1 2 . . . . . . . . 1 . . Impact 4 | . . . 1 2 . . . . . . . . 1 . . Kinetic . | . . . . . . . . . . . . . . . . Secondary . | . . . . . . . . . . . . . . . . Self-Inflicted Damage 114 | . . . . 82 . . 32 . . . . . . . . Shots 3 | . . . . 2 . . 1 . . . . . . . . Rammed 3 | . . . . 3 . . . . . . . . . . . Targets Rammed 3 | . . . . 3 . . . . . . . . . . . Kicked . | . . . . . . . . . . . . . . . . Crushed . | . . . . . . . . . . . . . . . . Highest Temperature 375 | 54 375 107 8 120 10 30 129 163 58 2 71 . 197 278 164 Average Temperature 55 | 18 163 30 4 44 4 9 22 37 22 2 28 . 69 119 81 Received Heat Transfer 1341 | . 99 138 54 333 201 . 18 27 . 18 180 147 99 18 9 Effects 1 | . 1 . . . . . . . . . . . . . . Interference 1 | . 1 . . . . . . . . . . . . . . Siege Activations . | . . . . . . . . . . . . . . . . Robots Corrupted . | . . . . . . . . . . . . . . . . Combat Hostiles . | . . . . . . . . . . . . . . . . Parts Fried 4 | . . 1 . 3 . . . . . . . . . . . Impact Corruptions 13 | . . . 1 12 . . . . . . . . . . . Robots Melted . | . . . . . . . . . . . . . . . . Combat Hostiles . | . . . . . . . . . . . . . . . . Parts Melted 3 | 2 1 . . . . . . . . . . . . . . Heat Transferred 1147 | 740 407 . . . . . . . . . . . . . . Parts Sabotaged . | . . . . . . . . . . . . . . . . Parts Stolen . | . . . . . . . . . . . . . . . . Parts Stripped . | . . . . . . . . . . . . . . . . Power Chain Reactions . | . . . . . . . . . . . . . . . . Missiles Intercepted . | . . . . . . . . . . . . . . . . Alert | -11 -10 -9 -8 -7 -6 -5 -5 -5 -5 -4 -4 -3 -2 -1 -1 ------- Run | Scr Mat Mat Mat Fac Fac Fac Upp Upp War Pro Fac Res Res Acc Com Peak Influence 1445 | 70 81 275 446 926 881 713 . . . . 426 454 700 1089 1445 Initial 696 | . . 33 115 202 419 431 . . . . 56 168 146 389 696 Average 120 | 1 24 70 186 428 652 591 . . . . 208 294 324 671 987 Maximum Alert Level 4 | . . 1 2 3 3 3 . . . . 2 2 3 3 4 Low Security (%) 79 | 100 100 98 75 . . . . . . . 55 35 45 . . Level 1 5 | . . 1 15 46 . . . . . . 37 37 23 3 . Level 2 10 | . . . 9 43 59 92 . . . . 7 27 26 54 8 Level 3 4 | . . . . 10 40 7 . . . . . . 4 41 62 Level 4 . | . . . . . . . . . . . . . . . 28 Level 5 . | . . . . . . . . . . . . . . . . High Security . | . . . . . . . . . . . . . . . . Max Security . | . . . . . . . . . . . . . . . . Squads Dispatched 31 | . 1 4 . 8 4 3 . . . . 3 2 . 5 1 Investigation 8 | . . . . 3 1 1 . . . . 1 . . 2 . Extermination 3 | . . . . 2 . . . . . . 1 . . . . Reinforcement 16 | . 1 4 . 3 2 2 . . . . 1 2 . . 1 Assault 4 | . . . . . 1 . . . . . . . . 3 . Garrison . | . . . . . . . . . . . . . . . . Intercept . | . . . . . . . . . . . . . . . . Construction Impeded . | . . . . . . . . . . . . . . . . Haulers Reinforced 1 | . . . . . . . . . . . . 1 . . . Stealth | -11 -10 -9 -8 -7 -6 -5 -5 -5 -5 -4 -4 -3 -2 -1 -1 --------- Run | Scr Mat Mat Mat Fac Fac Fac Upp Upp War Pro Fac Res Res Acc Com Distress Signals 16 | . . . . 2 4 2 . . . . . 1 3 1 3 Communications Jammed . | . . . . . . . . . . . . . . . . Distress Signals . | . . . . . . . . . . . . . . . . Times Spotted 509 | . 6 27 20 40 42 14 12 13 7 11 23 17 48 42 187 Peak Tracking Total 151 | . 4 17 15 9 9 10 5 5 6 5 13 6 14 18 151 Tactical Retreats 66 | . 1 1 2 10 13 3 2 3 . 3 1 5 9 7 6 Traps | -11 -10 -9 -8 -7 -6 -5 -5 -5 -5 -4 -4 -3 -2 -1 -1 ------- Run | Scr Mat Mat Mat Fac Fac Fac Upp Upp War Pro Fac Res Res Acc Com Traps Triggered 2 | . . . . 1 . . . . . . 1 . . . . Indirectly . | . . . . . . . . . . . . . . . . Trap Hack Attempts . | . . . . . . . . . . . . . . . . Triggered . | . . . . . . . . . . . . . . . . Disarmed . | . . . . . . . . . . . . . . . . Reprogrammed . | . . . . . . . . . . . . . . . . Reused . | . . . . . . . . . . . . . . . . Traps Extracted . | . . . . . . . . . . . . . . . . Installed . | . . . . . . . . . . . . . . . . Triggered 9 | . . . . . . . 2 . 6 1 . . . . . Machines | -11 -10 -9 -8 -7 -6 -5 -5 -5 -5 -4 -4 -3 -2 -1 -1 ---------- Run | Scr Mat Mat Mat Fac Fac Fac Upp Upp War Pro Fac Res Res Acc Com Machines Disabled 10 | . . . 1 3 . . . . . . 3 . . 2 1 Max in Single Turn 2 | . . . 1 2 . . . . . . 2 . . 1 1 Garrison Access 3 | . . . . . . 1 . . . . . . 1 1 . Phase Generator 1 | . . . . . . . . . . . . . . . 1 Machines Sabotaged . | . . . . . . . . . . . . . . . . Garrisons Compromised . | . . . . . . . . . . . . . . . . Overloaded Fab Kills . | . . . . . . . . . . . . . . . . Fab Network Shutdowns 1 | . . . . 1 . . . . . . . . . . . Hacking | -11 -10 -9 -8 -7 -6 -5 -5 -5 -5 -4 -4 -3 -2 -1 -1 --------- Run | Scr Mat Mat Mat Fac Fac Fac Upp Upp War Pro Fac Res Res Acc Com Machines Accessed 75 | . 1 1 6 14 11 5 1 1 5 . 7 4 1 13 5 Terminals 47 | . 1 1 4 8 7 3 . 1 . . 4 3 1 10 4 Fabricators 10 | . . . . 4 1 1 . . . . 2 . . 2 . Repair Stations 2 | . . . 1 . 1 . . . . . . . . . . Recycling Units 4 | . . . . 1 1 . . . . . . 1 . . 1 Scanalyzers 3 | . . . 1 . 1 . . . . . 1 . . . . Garrison Access 3 | . . . . 1 . 1 . . . . . . . 1 . Total Hacks 220 | . 3 5 21 39 39 18 1 1 17 . 27 9 1 27 12 Successful 124 | . 2 3 11 19 16 10 1 1 17 . 19 5 . 14 6 Failed 96 | . 1 2 10 20 23 8 . . . . 8 4 1 13 6 Catastrophic 15 | . . . 2 3 7 . . . . . 2 . 1 . . Database Lockouts . | . . . . . . . . . . . . . . . . Manual 103 | . 3 3 9 20 20 10 . . 1 . 15 4 1 11 6 Terminals 133 | . 3 5 14 21 23 14 . 1 . . 14 7 1 21 9 Fabricators 35 | . . . . 14 5 3 . . . . 9 . . 4 . Repair Stations 4 | . . . 3 . 1 . . . . . . . . . . Recycling Units 13 | . . . . 3 5 . . . . . . 2 . . 3 Scanalyzers 13 | . . . 4 . 5 . . . . . 4 . . . . Garrison Access 4 | . . . . 1 . 1 . . . . . . . 2 . Terminal Hacks 45 | . . 2 2 3 2 3 1 1 17 . 4 2 . 5 3 Record 12 | . . . . . . . . 1 10 . 1 . . . . Part Schematic 3 | . . . . 1 1 . . . . . 1 . . . . Prototype ID Bank 6 | . . . . . . . . . 6 . . . . . . Open Door 5 | . . . . . . . 1 . 1 . . . . 3 . Level Access Points 4 | . . . . . . . . . . . 1 1 . 1 1 Machine Index 3 | . . . . 1 . . . . . . . . . 1 1 Terminal Index 2 | . . . . . 1 1 . . . . . . . . . Fabricator Index 1 | . . . . . . 1 . . . . . . . . . Unreport Threat 1 | . . . . 1 . . . . . . . . . . . Recall Investigation 1 | . . . 1 . . . . . . . . . . . . Hauler Manifests 2 | . . 2 . . . . . . . . . . . . . Zone Layout 5 | . . . 1 . . 1 . . . . 1 1 . . 1 Fabricator Hacks 20 | . . . . 7 3 2 . . . . 6 . . 2 . Load Schematic 9 | . . . . 3 1 1 . . . . 3 . . 1 . Build 11 | . . . . 4 2 1 . . . . 3 . . 1 . Repair Station Hacks 2 | . . . 2 . . . . . . . . . . . . Scan Component 1 | . . . 1 . . . . . . . . . . . . Repair 1 | . . . 1 . . . . . . . . . . . . Recycling Unit Hacks 7 | . . . . 2 3 . . . . . . . . . 2 Process 1 | . . . . . 1 . . . . . . . . . . Report Inventory 2 | . . . . 1 1 . . . . . . . . . . Retrieve Matter 1 | . . . . . 1 . . . . . . . . . . Retrieve Components 3 | . . . . 1 . . . . . . . . . . 2 Scanalyzer 8 | . . . 4 . 1 . . . . . 3 . . . . Insert Component 4 | . . . 2 . 1 . . . . . 1 . . . . Analyze 4 | . . . 2 . . . . . . . 2 . . . . Garrison Access Hacks 2 | . . . . . . 1 . . . . . . . 1 . Seal Access 2 | . . . . . . 1 . . . . . . . 1 . Unauthorized Hacks 40 | . 2 1 3 7 7 4 . . . . 6 3 . 6 1 Terminals 36 | . 2 1 3 6 6 4 . . . . 4 3 . 6 1 Assimilate 7 | . 1 . . 1 2 1 . . . . . . . 2 . Botnet 29 | . 1 1 3 5 4 3 . . . . 4 3 . 4 1 Fabricators 4 | . . . . 1 1 . . . . . 2 . . . . Siphon 4 | . . . . 1 1 . . . . . 2 . . . . Repair Stations . | . . . . . . . . . . . . . . . . Recycling Units . | . . . . . . . . . . . . . . . . Scanalyzers . | . . . . . . . . . . . . . . . . Garrison Access . | . . . . . . . . . . . . . . . . Data Cores Recovered . | . . . . . . . . . . . . . . . . Used . | . . . . . . . . . . . . . . . . Hacking Detections 59 | . 1 1 5 14 8 3 . . . . 6 4 1 11 5 Full Trace Events 9 | . . 1 . 3 1 1 . . . . 1 . . 2 . Feedback Events 1 | . . . . . . . . . . . . . . 1 . Corruption 1 | . . . . . . . . . . . . . . 1 . Feedback Blocked . | . . . . . . . . . . . . . . . . Robot Schematics Acquired . | . . . . . . . . . . . . . . . . Robots Built . | . . . . . . . . . . . . . . . . Matter . | . . . . . . . . . . . . . . . . Time . | . . . . . . . . . . . . . . . . Total Robot Build Rating . | . . . . . . . . . . . . . . . . Part Schematics Acquired 6 | . . . 2 1 1 . . . . . 2 . . . . Parts Built 13 | . . . . 2 4 . . . . . 5 . . 2 . Matter 1128 | . . . . 168 252 168 . . . . 328 . . 212 . Time 464 | . . . . 42 168 42 . . . . 177 . . 35 . Total Part Build Rating 53 | . . . . 8 16 . . . . . 17 . . 12 . Parts Repaired 1 | . . . 1 . . . . . . . . . . . . Time 32 | . . . 32 . . . . . . . . . . . . Parts Recycled . | . . . . . . . . . . . . . . . . Recycled Matter 41 | . . . . . 41 . . . . . . . . . . Retrieved Matter . | . . . . . . . . . . . . . . . . Retrieved Components 3 | . . . . 2 . . . . . . . . . . 1 Parts Scanalyzed 4 | . . . 2 . 1 . . . . . 1 . . . . Part Schematics Acquired 3 | . . . 2 . . . . . . . 1 . . . . Parts Damaged . | . . . . . . . . . . . . . . . . Bothacking | -11 -10 -9 -8 -7 -6 -5 -5 -5 -5 -4 -4 -3 -2 -1 -1 ------------ Run | Scr Mat Mat Mat Fac Fac Fac Upp Upp War Pro Fac Res Res Acc Com Used RIF Installer . | . . . . . . . . . . . . . . . . Robots Hacked 1 | . . . . 1 . . . . . . . . . . . Non-combat 1 | . . . . 1 . . . . . . . . . . . Combat . | . . . . . . . . . . . . . . . . Robot Hacks Applied 1 | . . . . 1 . . . . . . . . . . . parse_system 1 | . . . . 1 . . . . . . . . . . . Relay Couplers Released 1 | . . . . . . . . . . . . . 1 . . Machine Destruction 1 | . . . . . . . . . . . . . 1 . . Robots Rewired . | . . . . . . . . . . . . . . . . Allies Hacked . | . . . . . . . . . . . . . . . . Hacks Repelled . | . . . . . . . . . . . . . . . . Allies | -11 -10 -9 -8 -7 -6 -5 -5 -5 -5 -4 -4 -3 -2 -1 -1 -------- Run | Scr Mat Mat Mat Fac Fac Fac Upp Upp War Pro Fac Res Res Acc Com Total Allies 6 | . 1 . . 1 2 1 . . . . . . . 1 . Largest Group 1 | . 1 1 . 1 1 1 1 . . . . . . 1 . Highest-Rated Group 44 | . 10 10 . 10 26 10 10 . . . . . . 44 . Highest-Rated Ally 44 | . 10 10 . 10 26 10 10 . . . . . . 44 . Total Orders 48 | . 1 . . . . 2 12 11 5 12 . 2 . 3 . FOLLOW 1 | . 1 . . . . . . . . . . . . . . EXPLORE 43 | . . . . . . 2 12 11 1 12 . 2 . 3 . RETURN 4 | . . . . . . . . . 4 . . . . . . Ally Attacks . | . . . . . . . . . . . . . . . . Total Damage . | . . . . . . . . . . . . . . . . Kills . | . . . . . . . . . . . . . . . . Allies Corrupted 2 | . . . . . . . . . . . . . . 2 . Allies Melted 1 | . . . . . . . . . 1 . . . . . . Intel | -11 -10 -9 -8 -7 -6 -5 -5 -5 -5 -4 -4 -3 -2 -1 -1 ------- Run | Scr Mat Mat Mat Fac Fac Fac Upp Upp War Pro Fac Res Res Acc Com Robot Analysis Total . | . . . . . . . . . . . . . . . . Derelict Logs Recovered 5 | . . . . . . . 2 2 . 1 . . . . . Drone Launches 51 | . . . . . . 2 14 13 4 12 . 2 . 4 . Drone Recoveries 37 | . . . . . . 2 14 11 4 2 . 2 . 2 . Exploration | -11 -10 -9 -8 -7 -6 -5 -5 -5 -5 -4 -4 -3 -2 -1 -1 ------------- Run | Scr Mat Mat Mat Fac Fac Fac Upp Upp War Pro Fac Res Res Acc Com Turns Passed 15497 | 9999 239 354 178 885 694 194 260 321 579 178 315 440 419 283 159 Spaces Moved 9632 | 124 109 224 243 1096 1375 396 470 537 1054 443 638 538 947 986 452 Core 330 | . . . . 23 . . 6 . . . 1 272 . . 28 Treads . | . . . . . . . . . . . . . . . . Legs 387 | 124 109 154 . . . . . . . . . . . . . Wheels . | . . . . . . . . . . . . . . . . Hover 804 | . . . . 421 . . . . . . . 253 130 . . Flight 8111 | . . 70 243 652 1375 396 464 537 1054 443 637 13 817 986 424 Fastest Speed 5 | 120 120 37 34 34 29 27 27 27 27 29 27 40 6 5 5 Average Speed 38 | 120 120 100 35 51 32 32 33 33 34 29 32 69 33 13 18 Slowest Speed 450 | 120 120 197 37 300 109 111 200 106 111 108 450 280 56 21 50 Overloaded Moves 295 | . . . . . . . . . . . . . 32 181 82 Propulsion Burnouts . | . . . . . . . . . . . . . . . . Robots Hopped 60 | . . . 4 6 3 1 . . . 2 3 . 17 14 10 Cave-ins Triggered 1 | . . . . 1 . . . . . . . . . . . Exploration Rate (%) 42 | 5 25 30 39 33 40 25 84 97 95 76 21 21 29 31 26 Regions Visited 15 Branch Regions 5 Pre-discovered Areas . | . . . . . . . . . . . . . . . . Known Exits Taken 5 | . . . . . . . 1 . . 1 1 1 1 . . Unknown Exits Taken 10 | 1 1 1 1 1 1 1 . 1 1 . . . . 1 . Scrap Searched 9 | . . . . . . . 4 3 . 2 . . . . . Spaces Dug 141 | . 5 . . 34 23 12 7 4 1 . 13 7 3 26 6 Terrain Destroyed 302 | . 5 . 30 52 23 12 32 4 1 . 101 7 3 26 6 Melee 136 | . . . . 34 23 12 7 4 1 . 13 7 3 26 6 Projectile 5 | . 5 . . . . . . . . . . . . . . AOE 161 | . . . 30 18 . . 25 . . . 88 . . . . Terrain Rammed . | . . . . . . . . . . . . . . . . Walls Destroyed . | . . . . . . . . . . . . . . . . Machines Disabled . | . . . . . . . . . . . . . . . . Actions | -11 -10 -9 -8 -7 -6 -5 -5 -5 -5 -4 -4 -3 -2 -1 -1 --------- Run | Scr Mat Mat Mat Fac Fac Fac Upp Upp War Pro Fac Res Res Acc Com Total 20861 | 9923 172 328 324 1321 1544 440 550 661 1261 480 709 584 1001 1059 504 Wait 10609 | 9768 34 61 50 109 82 16 52 113 189 29 8 1 21 38 38 Move 9507 | 123 108 223 234 1083 1368 393 469 536 1053 439 632 537 913 961 435 Hop 50 | . . . 4 6 3 1 . . . 1 2 . 16 10 7 Pick Up 69 | 3 2 5 6 11 10 1 4 . 2 1 8 3 6 5 2 Fast Attach 111 | . . 5 4 23 16 7 2 1 6 1 8 11 20 6 1 Attach 64 | 1 1 5 5 9 8 1 1 . . 1 11 6 6 3 6 Detach 30 | . . 3 3 3 3 2 1 . . 1 4 7 1 1 1 Swap 35 | . 5 3 4 5 2 . 2 1 1 1 5 . 1 2 3 Drop 82 | 2 2 9 7 11 9 7 4 1 7 1 6 4 6 2 4 Fire 78 | 26 20 14 4 5 . . 4 . . . 5 . . . . Melee 223 | . . . 3 53 43 12 11 9 3 5 20 15 11 31 7 Ram 3 | . . . . 3 . . . . . . . . . . . Kick . | . . . . . . . . . . . . . . . . Crush . | . . . . . . . . . . . . . . . . Escape Stasis . | . . . . . . . . . . . . . . . . Rewire . | . . . . . . . . . . . . . . . . Trap . | . . . . . . . . . . . . . . . . Miscellaneous . | . . . . . . . . . . . . . . . . Route ------- -11/Scrapyard -10/Materials -9/Materials -8/Materials -7/Factory (discovered 3 exits: *Fac / [*Sto] / [*Low]) -6/Factory (discovered 2 exits: *Fac / [*Low]) -5/Factory -5/Upper Caves -5/Upper Caves (discovered 2 exits: *Fac / *War) -5/Warlord -4/Proximity Caves -4/Factory (discovered 5 exits: *Res x4 / [*Upp]) -3/Research (discovered 3 exits: *Res x3) -2/Research -1/Access (discovered 2 exits: Sur / *Com) -1/Command (discovered 2 exits: Sur x2) History --------- Turn | Location | Event 11 | -11/Scrapyard | Discovered new exit (range 3) 10000 | -11/Scrapyard | Entered Materials 10001 | -10/Materials | Build established: Mutant 10234 | -10/Materials | Discovered new exit (range 4) 10239 | -10/Materials | Entered another Materials area 10239 | -9/Materials | Accompanied by 1 ally 10239 | -9/Materials | Evolved 2 slots: Utility x2 10588 | -9/Materials | Discovered new exit (range 16) 10593 | -9/Materials | Entered another Materials area 10593 | -8/Materials | Evolved 2 slots: Power x1, Propulsion x1 10634 | -8/Materials | Repaired Imp. Terrain Scanner 10770 | -8/Materials | Discovered new exit (range 5) 10771 | -8/Materials | Entered Factory 10771 | -7/Factory | Evolved 2 slots: Utility x2 10975 | -7/Factory | Discovered new exit (range 10) 11053 | -7/Factory | Discovered new exit (range 12) 11437 | -7/Factory | Lost 5 parts (1p1n1u2w) 11536 | -7/Factory | Crushed by falling debris 11536 | -7/Factory | System corruption reached 10% 11560 | -7/Factory | Fabricated Xenon Bombardment Thruster (x2) 11566 | -7/Factory | Local fabrication network quarantined 11567 | -7/Factory | Lost 4 parts (1p2u1w) 11635 | -7/Factory | Discovered new exit (range 16) 11656 | -7/Factory | Entered another Factory area 11656 | -6/Factory | Evolved 2 slots: Propulsion x1, Utility x1 11758 | -6/Factory | Spotted B-75 Beast 11769 | -6/Factory | Discovered new exit (range 15) 11873 | -6/Factory | Discovered new exit (range 16) 11962 | -6/Factory | Fabricated Xenon Bombardment Thruster? 11985 | -6/Factory | Found Prototype Processor 11985 | -6/Factory | Identified Exp. Signal Interpreter 12006 | -6/Factory | First assault squad dispatched 12007 | -6/Factory | Build established: Sprinter 12138 | -6/Factory | Lost 4 parts (3p1n) 12187 | -6/Factory | Lost 3 parts (1n1u1w) 12335 | -6/Factory | Fabricated Xenon Bombardment Thruster (x2) 12350 | -6/Factory | Entered another Factory area 12350 | -5/Factory | Evolved 2 slots: Propulsion x1, Utility x1 12486 | -5/Factory | Discovered new exit (range 3) 12544 | -5/Factory | Entered Upper Caves 12544 | -5/Upper Caves | Accompanied by 1 ally 12590 | -5/Upper Caves | Identified exit to Upper Caves 12649 | -5/Upper Caves | Learned Factory emergency access door positions 12656 | -5/Upper Caves | Spotted B-75 Beast 12804 | -5/Upper Caves | Entered another Upper Caves area 12810 | -5/Upper Caves | Discovered new exit (range 11) 12913 | -5/Upper Caves | Attracted the attention of an 0b10 checkpoint 12961 | -5/Upper Caves | Spotted B-75 Beast 13008 | -5/Upper Caves | Discovered new exit (range 28) 13077 | -5/Upper Caves | Learned Factory terminal intel 13119 | -5/Upper Caves | Encountered a Warlord checkpoint 13121 | -5/Upper Caves | Learned location of 1 exit from Factory 13125 | -5/Upper Caves | Entered Warlord 13125 | -5/Warlord | Accompanied by 1 ally 13162 | -5/Warlord | Discovered new exit (range 12) 13180 | -5/Warlord | System corruption cleaned by Quarantine Array 13253 | -5/Warlord | Found Prototype Device 13253 | -5/Warlord | Identified Minesniffer Drone Bay 13287 | -5/Warlord | Visited the Vortex Lab 13290 | -5/Warlord | Found Prototype Piercing Weapon 13290 | -5/Warlord | Identified Vortex Lance 13302 | -5/Warlord | Warlord's base attacked by MAIN.C 13477 | -5/Warlord | Met Warlord 13625 | -5/Warlord | Found Vortex Lance 13652 | -5/Warlord | Warlord forces counterattacked 13672 | -5/Warlord | Spotted B-75 Beast 13704 | -5/Warlord | Entered Proximity Caves 13738 | -4/Proximity Caves | Spotted B-86 Titan 13792 | -4/Proximity Caves | Attracted the attention of an 0b10 checkpoint 13793 | -4/Proximity Caves | Identified exit to Factory 13882 | -4/Proximity Caves | Entered Factory 13882 | -4/Factory | Evolved 2 slots: Power x1, Weapon x1 13883 | -4/Factory | Identified exit to Research 13885 | -4/Factory | Loaded intel: 20 terminal locations 13938 | -4/Factory | Discovered new exit (range 9) 14036 | -4/Factory | Fabricated Xenon Bombardment Thruster? 14066 | -4/Factory | Fabricated Med. Storage Unit? 14095 | -4/Factory | Lost 6 parts (1n3u2w) 14189 | -4/Factory | Fabricated Xenon Bombardment Thruster? 14196 | -4/Factory | Core integrity fell below 50% 14197 | -4/Factory | Entered Research 14197 | -3/Research | Evolved 2 slots: Utility x2 14227 | -3/Research | Lost 14 parts (1p7n4u2w) 14327 | -3/Research | Build established: Hacker-Mutant 14367 | -3/Research | Spotted B-86 Titan 14394 | -3/Research | Identified exit to Research 14483 | -3/Research | Spotted B-86 Titan 14628 | -3/Research | Found Enh. Force Lance 14637 | -3/Research | Entered another Research area 14637 | -2/Research | Warlord forces began assault on 0b10 14637 | -2/Research | Evolved 2 slots: Power x1, Propulsion x1 14675 | -2/Research | Build established: Mutant 14747 | -2/Research | Research machine network offline 14897 | -2/Research | Spotted B-90 Cyclops 14897 | -2/Research | Spotted B-90 Cyclops 14936 | -2/Research | Lost 3 parts (1p1n1u) 14976 | -2/Research | Spotted Executioner 14976 | -2/Research | Spotted Executioner 15043 | -2/Research | Lost 3 parts (1p1n1u) 15045 | -2/Research | Discovered new exit (range 3) 15045 | -2/Research | Identified exit to Access 15056 | -2/Research | Entered Access 15056 | -1/Access | Evolved 2 slots: Propulsion x1, Utility x1 15170 | -1/Access | Spotted B-99 Colossus 15265 | -1/Access | Fabricated Mic. Fission Core? 15286 | -1/Access | Identified exit to Surface 15306 | -1/Access | First assault squad dispatched 15324 | -1/Access | Discovered new exit (range 7) 15335 | -1/Access | Spotted B-99 Colossus 15335 | -1/Access | Spotted B-99 Colossus 15339 | -1/Access | Entered Command 15352 | -1/Command | Spotted B-99 Colossus 15391 | -1/Command | Phase Generator disabled 15394 | -1/Command | Found Centrium Greatsword 15464 | -1/Command | Spotted M Guard 15465 | -1/Command | Spotted M Guard 15465 | -1/Command | Spotted Combat Programmer 15466 | -1/Command | Spotted Combat Programmer 15487 | -1/Command | Core integrity fell below 50% 15487 | -1/Command | System corruption reached 10% 15496 | -1/Command | Core integrity fell below 20% 15498 | -1/Command | Destroyed by H-88 Terminator with KE Penetrator Last Messages --------------- 15494_ Slug penetrates H-88 Terminator. 15494_ Xenon Bombardment Thruster destroyed. 15494_ Knocked back. 15495_ H-88 Terminator suffers critical hit. 15495_ H-88 Terminator destroyed. 15495_ Slug penetrates G-73 Enforcer. 15495_ G-73 Enforcer suffers critical hit. 15495_ Penetrated by Slug. 15496_ System corrupted: Heat flow error (+160). 15496_ Penetrated by Slug. 15496_ Slug penetrates Wall. 15496_ EMDS Slug penetrates S-43 Plague. 15496_ S-43 Plague suffers critical hit. 15496_ S-43 Plague destroyed. 15496_ Knocked back. 15496_ Penetrated by Slug. 15497_ Acquired 5 matter. 15497_ Penetrated by Slug. 15497_ Exp. Coolant Injector destroyed. 15498_ Penetrated by Slug. Map ----- +----------------------------------------------------+ | ??????????????? ??? ???????????????????????????? | | ??????????????? ??? ???????????????????????????? | | ??????????????? ??? ???????????????????????????? | | ??????????????? #?? #??? ??????????????????????? | | ??????????????? %%?? ??? ??????????????????????? | | ??????????????? %?? ??? ?????????????????????? | | ??????????????? % ?? ?? ?????????????????????? | | ??????????????? % ?? ?? ??????????????????????? | | ??????????????? % ?? ?? ??????????????????????? | | ??????????????? % ?? ?? ??????????????????????? | | ???????????????# #??# #??g#??????????????????????? | | ???????????????#%#??# #??g#??????????????????????? | | ???????????????#%#??# #??g#??????????????????????? | | ???????????????#%#### ###g#### #?????????????????? | | ???????????????#" g #?????????????????? | | ???????????????########p p######?????????????????? | | ??????????????????????# g#??????????????????????? | | ??????????????????????#ggg#??????????????????????? | | ??????????????????????# g #??????????????????????? | | ??????????????????????#gps#??????????????????????? | | ??????????????????????#ggh#??????????????????????? | | ??????????????????????#hph#??????????????????????? | | ??????????????????????#glp#??????????????????????? | | ??????????????????????#shl##?????????????????????? | | ??????????????????????#h!p;#?????????????????????? | | ??????????????????????# =@# #????????????????????? | | ??????????????????????#YY!## #???????????????????? | | ??????????????????????#l #?##???????????????????? | | ??????????????????????# hh#??????????????????????? | | ??????????????????????#lh #??????????????????????? | | ??????????????????????# #??????????????????????? | | ??????????????????????# b#??????????????????????? | | ??????????????????????# l#??????????????????????? | | ??????????????????????# h#??????????????????????? | | ??????????????????????# #??????????????????????? | | ??????????????????????# h###????????????????????? | | ?????????????????????## h #####?#####?#####????? | | ????????????????????## #?# #?# #????? | | ???????????????#+++## Wh# ### ### ###### | | ???????????????# / | | ???????????????# / | | ???????????????# / | | ???????????????# / | | ???????????????# / | | ???????????????# ### ### ###### | | ???????????????#####??# # #?# #????? | | ??????????????????????####### ####?#####????? | | ???????????????????????????## # ##?????????????? | | ????????????????????????????#######??????????????? | | ?????????????????????????????????????????????????? | +----------------------------------------------------+ Best States ------------- Heat Dissipation 52 Coolant Potential 220 Energy Generation 78 Energy Capacity 430 Matter Stores 300 Matter Capacity 300 Sight Range 22 Robot Scan Range 16 Terrain Scan Range 24 Terrain Scan Density 135 ECM Strength 3 Cloak Strength 3 Additional Mass Support 12 Base Temperature (-) 200 Propulsion Shielding 66 Melee Speed Boost 30 Phase Shifting 15 Evasion (%) 94 Melee Accuracy 6 Core Analysis 6 Stasis Canceling 2 Offensive Hacking 45 Defensive Hacking 12 Item Schematics ----------------- Xenon Bombardment Thruster | -8/Materials | Scanalyzed Power Maul | -8/Materials | Scanalyzed Cesium-ion Thruster | -7/Factory | Hacked Lance | -6/Factory | Hacked Mic. Fission Core | -4/Factory | Scanalyzed Med. Storage Unit | -4/Factory | Hacked Robot Schematics ------------------ None Fabricated ------------ Xenon Bombardment Thruster | x2 | -7/Factory Xenon Bombardment Thruster | x2 | -6/Factory Xenon Bombardment Thruster | x2 | -6/Factory Xenon Bombardment Thruster | x2 | -4/Factory Med. Storage Unit | x1 | -4/Factory Xenon Bombardment Thruster | x2 | -4/Factory Mic. Fission Core | x2 | -1/Access Alien Tech Used ----------------- None Achievements -------------- Deadly Force Leap Before You Look Prolific Hacker Release The Drones! Supersonic Challenges ------------ None Game ------ Seed AlloyForceDeconstructor Manual? 0 Play Time 04:45:38 Cumulative 99.3 hours Start 2020.12.30 @ 19:02:15 End 2020.12.31 @ 04:44:47 Sessions 3 Manual Loads 0 Difficulty Rogue Special Mode None Game No. 66 Rogue 66 Adventurer 0 Explorer 0 Win Type - Total 2 Types 2/0/0/0/0/0/0/0/0 Lore% 36 Gallery% 53 Achievement% 30 Wizard Run 0 Options --------- ASCII 0 Keyboard 0 Movement Mouse Keybinds 0 Fullscreen 1 Font 18/SmallcapsGlow Map View 76x50 Tactical HUD 1 Map Filters NONE Filters NONE Steam 1 RUN: 8e39b602-1ad6-4c85-8a03-f87f7286d7f0